bitfinex-derivatives/quotes_BTCF0:USTF0_20260113
["timestamp","ask_amount","ask_price","bid_price","bid_amount"]
[1768294762277,0.13068046,92240.0,92227.0,0.010854]
[1768294763881,0.13068046,92240.0,92211.0,0.09772]
[1768294764090,0.13068046,92240.0,92227.0,0.010854]
[1768294764388,0.13068046,92240.0,92227.0,0.10141047]
[1768294765087,0.02337626,92239.0,92227.0,0.10141047]
[1768294765292,0.02337626,92238.0,92229.0,0.010854]
[1768294765492,0.02337626,92237.0,92229.0,0.010854]
[1768294765689,0.02337626,92236.0,92229.0,0.010854]
[1768294765885,0.02337626,92235.0,92229.0,0.010854]
[1768294766080,0.02337626,92234.0,92229.0,0.010854]
[1768294766281,2.6e-07,92233.0,92229.0,0.010854]
[1768294766491,0.13068046,92240.0,92229.0,0.010854]
[1768294766991,0.09772,92243.0,92229.0,0.09055647]
[1768294767189,0.13068046,92240.0,92235.0,0.010853]
[1768294767387,0.09772,92243.0,92235.0,0.010853]
[1768294771796,0.09772,92243.0,92230.0,0.13068046]
[1768294772002,0.09772,92243.0,92224.0,0.09492146]
[1768294772594,0.09772,92243.0,92230.0,0.13068046]
[1768294773494,0.09772,92243.0,92233.0,0.010853]
[1768294775492,0.09772,92243.0,92235.0,0.010853]
[1768294778493,0.02326068,92242.0,92235.0,0.010853]
[1768294778696,0.09772,92243.0,92235.0,0.010853]
[1768294778998,0.02326068,92242.0,92235.0,0.010853]
[1768294779184,0.09344448,92248.0,92235.0,0.010853]
[1768294779389,0.2170164,92247.0,92235.0,0.010853]
[1768294779592,0.02326068,92246.0,92235.0,0.010853]
[1768294779789,0.19375572,92247.0,92235.0,0.010853]
[1768294779790,0.02326068,92245.0,92235.0,0.010853]
[1768294779990,0.02326068,92244.0,92235.0,0.010853]
[1768294780189,0.02326068,92243.0,92230.0,0.13068046]
[1768294780393,0.02326068,92242.0,92230.0,0.13068046]
[1768294780592,0.19375572,92247.0,92230.0,0.13068046]
[1768294780792,0.02326096,92246.0,92230.0,0.13068046]
[1768294780996,0.02326096,92245.0,92230.0,0.13068046]
[1768294781196,0.02326096,92244.0,92235.0,0.010853]
[1768294781394,0.02326096,92243.0,92235.0,0.010853]
[1768294781598,0.02326096,92242.0,92235.0,0.010853]
[1768294781795,0.19375572,92247.0,92235.0,0.010853]
[1768294781996,0.02326156,92246.0,92235.0,0.010853]
[1768294782300,0.02326156,92245.0,92235.0,0.010853]
[1768294782499,0.02326156,92244.0,92235.0,0.010853]
[1768294782696,0.02326156,92243.0,92235.0,0.010853]
[1768294782899,0.02326156,92242.0,92235.0,0.010853]
[1768294783100,0.02326156,92241.0,92235.0,0.010853]
[1768294783402,0.09913949,92246.0,92230.0,0.13068046]
[1768294783900,0.09913949,92246.0,92235.0,0.010853]
[1768294786299,0.09913949,92246.0,92230.0,0.12253346]
[1768294786502,0.09772,92248.0,92236.0,0.13068046]
[1768294786802,0.09772,92248.0,92234.0,0.09273692]
[1768294787501,0.09772,92248.0,92237.0,0.010853]
[1768294791806,0.19375572,92247.0,92228.0,0.09273692]
[1768294792005,0.09913949,92246.0,92230.0,0.13068046]
[1768294792200,0.19375572,92246.0,92234.0,0.010853]
[1768294792394,0.09913949,92245.0,92234.0,0.010853]
[1768294794096,0.09913949,92245.0,92230.0,0.13068046]
[1768294794097,0.09913949,92245.0,92230.0,0.12653346]
[1768294795407,0.02306158,92244.0,92230.0,0.12653346]
[1768294795606,0.02306158,92243.0,92230.0,0.12653346]
[1768294795806,0.09913949,92245.0,92230.0,0.12653346]
[1768294796103,0.02306158,92244.0,92230.0,0.12653346]
[1768294796299,0.02306158,92243.0,92230.0,0.12653346]
[1768294796499,0.02306158,92242.0,92234.0,0.010853]
[1768294796701,0.09913949,92245.0,92234.0,0.010853]
[1768294796902,0.02306301,92244.0,92234.0,0.010853]
[1768294797101,0.02306301,92243.0,92234.0,0.010853]
[1768294797302,0.02306301,92242.0,92234.0,0.010853]
[1768294797504,0.09913949,92245.0,92234.0,0.010853]
[1768294797704,0.02306487,92244.0,92234.0,0.010853]
[1768294797906,0.02306487,92243.0,92234.0,0.010853]
[1768294798101,0.02306487,92242.0,92234.0,0.010853]
[1768294798301,0.09913949,92245.0,92234.0,0.010853]
[1768294798502,0.02306513,92244.0,92234.0,0.010853]
[1768294798702,0.02306513,92243.0,92234.0,0.010853]
[1768294798903,0.02306513,92242.0,92234.0,0.010853]
[1768294799202,0.09913949,92245.0,92234.0,0.010853]
[1768294799411,0.02306552,92244.0,92234.0,0.010853]
[1768294799609,0.02306552,92243.0,92234.0,0.010853]
[1768294799809,0.02306552,92242.0,92234.0,0.010853]
[1768294800009,0.09913949,92245.0,92236.0,0.010853]
[1768294800204,0.21682174,92244.0,92224.0,0.19258785]
[1768294800411,0.32437855,92240.0,92228.0,0.010854]
[1768294800617,0.09913949,92240.0,92228.0,0.010854]
[1768294801417,0.09913949,92240.0,92222.0,0.09273692]
[1768294801619,0.09913949,92240.0,92231.0,0.010854]
[1768294801620,0.19375572,92239.0,92231.0,0.010854]
[1768294802010,0.09913949,92239.0,92228.0,0.010854]
[1768294802321,0.09913949,92239.0,92220.0,0.22335975]
[1768294802322,0.09461623,92236.0,92221.0,0.108535]
[1768294802513,0.09913949,92231.0,92221.0,0.010855]
[1768294802714,0.22976232,92231.0,92221.0,0.010855]
[1768294803021,0.09461623,92247.0,92232.0,0.010854]
[1768294803221,0.02325105,92246.0,92232.0,0.010854]
[1768294803421,0.02325105,92245.0,92232.0,0.010854]
[1768294803723,0.02325105,92244.0,92232.0,0.010854]
[1768294804020,0.02325105,92243.0,92232.0,0.010854]
[1768294804217,0.09461623,92247.0,92232.0,0.010854]
[1768294804422,0.02325124,92246.0,92232.0,0.010854]
[1768294804723,0.02325124,92245.0,92232.0,0.010854]
[1768294804917,0.09461623,92247.0,92232.0,0.010854]
[1768294804918,0.02325124,92244.0,92232.0,0.010854]
[1768294805122,0.02325124,92243.0,92232.0,0.010854]
[1768294805312,0.09461623,92247.0,92232.0,0.010854]
[1768294805512,0.02325177,92246.0,92232.0,0.010854]
[1768294805710,0.02325177,92245.0,92232.0,0.010854]
[1768294805914,0.02325177,92244.0,92232.0,0.010854]
[1768294806114,0.02325177,92243.0,92232.0,0.010854]
[1768294806319,0.09461623,92247.0,92232.0,0.010854]
[1768294806519,0.0908785,92245.0,92229.0,0.010854]
[1768294806723,0.02325235,92244.0,92230.0,0.13062283]
[1768294807025,0.02325235,92243.0,92231.0,0.010854]
[1768294807224,0.19607381,92248.0,92231.0,0.010854]
[1768294807423,0.12160612,92247.0,92231.0,0.010854]
[1768294807624,0.02325231,92246.0,92231.0,0.010854]
[1768294807924,0.02325231,92245.0,92231.0,0.010854]
[1768294808124,0.02325231,92244.0,92231.0,0.010854]
[1768294808424,0.09772,92248.0,92234.0,0.010853]
[1768294808621,0.02325147,92247.0,92234.0,0.010853]
[1768294808822,0.02325147,92246.0,92234.0,0.010853]
[1768294809025,0.02325147,92245.0,92234.0,0.010853]
[1768294809225,0.02325147,92244.0,92234.0,0.010853]
[1768294809521,0.09772,92248.0,92234.0,0.010853]
[1768294809728,0.09772,92248.0,92238.0,0.13062283]
[1768294809729,0.02325159,92247.0,92238.0,0.13062283]
[1768294809924,0.02325159,92246.0,92231.0,0.09072331]
[1768294810119,0.02325159,92245.0,92231.0,0.09072331]
[1768294810322,0.09772,92248.0,92230.0,0.09706413]
[1768294810627,0.02325114,92247.0,92235.0,0.010853]
[1768294810924,0.02325114,92246.0,92235.0,0.010853]
[1768294811126,0.02325114,92245.0,92235.0,0.010853]
[1768294811325,0.19607381,92248.0,92235.0,0.010853]
[1768294811526,0.02325118,92247.0,92235.0,0.010853]
[1768294811718,0.02325118,92246.0,92235.0,0.010853]
[1768294811917,0.02325118,92245.0,92235.0,0.010853]
[1768294812118,0.19607381,92248.0,92235.0,0.010853]
[1768294812429,0.02325124,92247.0,92235.0,0.010853]
[1768294812619,0.19607381,92248.0,92235.0,0.010853]
[1768294812620,0.02325124,92246.0,92235.0,0.010853]
[1768294812819,0.02325124,92245.0,92235.0,0.010853]
[1768294813024,0.02325124,92244.0,92235.0,0.010853]
[1768294813225,0.02325124,92243.0,92235.0,0.010853]
[1768294813419,0.02325124,92242.0,92235.0,0.010853]
[1768294813620,0.02325124,92241.0,92235.0,0.010853]
[1768294813820,0.02325124,92240.0,92235.0,0.010853]
[1768294814020,2.4e-07,92239.0,92235.0,0.010853]
[1768294814220,0.19607381,92248.0,92235.0,0.010853]
[1768294814829,0.09772,92248.0,92235.0,0.010853]
[1768294815128,0.09600943,92255.0,92237.0,0.010853]
[1768294815326,0.19122864,92255.0,92237.0,0.010853]
[1768294815522,0.09521921,92254.0,92237.0,0.010853]
[1768294815828,0.09521921,92253.0,92237.0,0.010853]
[1768294816129,0.09521921,92252.0,92237.0,0.010853]
[1768294817029,0.19122864,92252.0,92237.0,0.010853]
[1768294817231,0.09521921,92251.0,92237.0,0.010853]
[1768294820930,0.09521921,92250.0,92237.0,0.010853]
[1768294823931,0.09600943,92251.0,92242.0,0.010852]
[1768294824128,0.19122864,92251.0,92242.0,0.010852]
[1768294825932,0.02317811,92250.0,92242.0,0.010852]
[1768294826133,0.02317811,92249.0,92242.0,0.010852]
[1768294826335,0.19122864,92251.0,92242.0,0.010852]
[1768294826528,0.02317752,92250.0,92242.0,0.010852]
[1768294826729,0.02317752,92249.0,92242.0,0.010852]
[1768294827032,0.19122864,92251.0,92242.0,0.010852]
[1768294827227,0.09521921,92244.0,92221.0,0.09297388]
[1768294827529,0.09521921,92235.0,92220.0,0.010855]
[1768294828123,0.09521921,92235.0,92216.0,0.010856]
[1768294828324,0.09600943,92242.0,92220.0,0.09783559]
[1768294828633,6.4e-07,92235.0,92230.0,0.10868959]
[1768294828825,6.4e-07,92235.0,92230.0,0.010854]
[1768294829224,0.19289921,92245.0,92230.0,0.010854]
[1768294829425,0.09521921,92244.0,92225.0,0.10868959]
[1768294829828,0.09521921,92242.0,92223.0,0.09297388]
[1768294830027,0.09521921,92242.0,92224.0,0.010855]
[1768294830332,0.09521921,92242.0,92223.0,0.09297388]
[1768294830729,0.09521921,92242.0,92224.0,0.09297388]
[1768294831432,0.09521921,92242.0,92224.0,0.10382888]
[1768294834227,0.09600943,92243.0,92222.0,0.09768]
[1768294834228,0.09521921,92250.0,92231.0,0.09297388]
[1768294834427,0.19289921,92258.0,92239.0,0.010853]
[1768294834733,0.19289921,92258.0,92242.0,0.010852]
[1768294835434,0.09197141,92257.0,92242.0,0.010852]
[1768294835840,0.18904058,92255.0,92242.0,0.010852]
[1768294836631,0.09706917,92255.0,92242.0,0.010852]
[1768294836831,0.18965141,92258.0,92242.0,0.010852]
[1768294837740,0.09197141,92257.0,92242.0,0.010852]
[1768294838240,0.09197141,92257.0,92238.0,0.09975858]
[1768294838542,0.09197141,92257.0,92242.0,0.010852]
[1768294839140,0.18904058,92265.0,92242.0,0.10378196]
[1768294839342,0.18965141,92264.0,92246.0,0.010852]
[1768294839642,0.09197141,92262.0,92246.0,0.010852]
[1768294839836,0.09197141,92261.0,92246.0,0.010852]
[1768294840033,0.09197141,92260.0,92246.0,0.010852]
[1768294841752,0.09197141,92259.0,92242.0,0.010852]
[1768294841947,0.09197141,92257.0,92242.0,0.010852]
[1768294843650,0.09197141,92257.0,92245.0,0.010852]
[1768294845535,0.09197141,92256.0,92245.0,0.010852]
[1768294846051,0.09197141,92255.0,92233.0,0.09975858]
[1768294846244,0.09197141,92251.0,92240.0,0.010853]
[1768294848452,0.18904058,92259.0,92236.0,0.09292996]
[1768294848745,0.02306586,92258.0,92238.0,0.09292996]
[1768294848951,0.11503727,92257.0,92238.0,0.09292996]
[1768294849258,0.09197141,92257.0,92238.0,0.09292996]
[1768294849555,0.09197141,92257.0,92242.0,0.010852]
[1768294850952,0.09197141,92256.0,92242.0,0.010852]
[1768294851656,0.09197141,92256.0,92243.0,0.010852]
[1768294853054,0.09197141,92256.0,92245.0,0.010852]
[1768294853548,0.09197141,92256.0,92237.0,0.09561058]
[1768294853855,0.02330802,92255.0,92237.0,0.09561058]
[1768294854053,0.09197141,92256.0,92237.0,0.09561058]
[1768294854250,0.02330801,92255.0,92237.0,0.09561058]
[1768294854452,0.09197141,92256.0,92237.0,0.09561058]
[1768294854650,0.02330796,92255.0,92237.0,0.09561058]
[1768294854847,0.09197141,92256.0,92237.0,0.09561058]
[1768294855154,0.02330791,92255.0,92237.0,0.09561058]
[1768294855352,0.09197141,92256.0,92237.0,0.09561058]
[1768294855550,9.6e-07,92255.0,92239.0,0.09975858]
[1768294855754,0.09197141,92259.0,92250.0,0.010852]
[1768294858359,0.18904058,92263.0,92252.0,0.010851]
[1768294858556,0.09197141,92267.0,92252.0,0.010851]
[1768294858755,0.09197141,92267.0,92254.0,0.010851]
[1768294858756,0.09197141,92266.0,92254.0,0.010851]
[1768294859147,0.09197141,92265.0,92254.0,0.010851]
[1768294859658,0.09706917,92262.0,92242.0,0.09768]
[1768294859848,0.09197141,92261.0,92242.0,0.09768]
[1768294860049,0.09197141,92259.0,92242.0,0.09768]
[1768294860346,0.09197141,92257.0,92242.0,0.09768]
[1768294860557,0.09706917,92256.0,92242.0,0.09768]
[1768294860957,0.18904058,92256.0,92242.0,0.09768]
[1768294861461,0.09768,92267.0,92252.0,0.010851]
[1768294862850,0.09768,92267.0,92245.0,0.09975858]
[1768294863355,0.09197141,92266.0,92255.0,0.010851]
[1768294863563,0.10006437,92268.0,92249.0,0.19268854]
[1768294863952,0.10006437,92268.0,92249.0,0.09975858]
[1768294864153,0.19713354,92268.0,92249.0,0.09975858]
[1768294864553,0.19713354,92268.0,92247.0,0.010852]
[1768294864757,0.09433913,92267.0,92247.0,0.010852]
[1768294865550,0.07576281,92266.0,92247.0,0.010852]
[1768294866362,0.09768,92274.0,92259.0,0.19324821]
[1768294866557,0.09768,92279.0,92259.0,0.19324821]
[1768294866751,0.09768,92279.0,92261.0,0.01085]
[1768294867256,0.09433913,92281.0,92272.0,0.010849]
[1768294867462,0.09433913,92281.0,92261.0,0.19324821]
[1768294867757,0.02315945,92280.0,92273.0,0.010849]
[1768294867951,0.02315945,92279.0,92273.0,0.010849]
[1768294868152,0.02315945,92278.0,92273.0,0.010849]
[1768294868454,0.02315945,92277.0,92273.0,0.010849]
[1768294868663,4.5e-07,92276.0,92270.0,0.010849]
[1768294868861,0.09433913,92286.0,92270.0,0.010849]
[1768294870246,0.00013032,92285.0,92270.0,0.010849]
[1768294870452,0.00013032,92284.0,92270.0,0.010849]
[1768294871256,0.00013032,92284.0,92262.0,0.19324821]
[1768294871454,0.00013032,92284.0,92270.0,0.14136423]
[1768294871851,0.010846,92301.0,92274.0,0.13051523]
[1768294872056,0.13051523,92290.0,92274.0,0.19324821]
[1768294872255,0.13051523,92290.0,92275.0,0.09992474]
[1768294872463,0.13051523,92290.0,92279.0,0.010848]
[1768294872649,0.09768,92290.0,92275.0,0.11077374]
[1768294872853,0.09768,92290.0,92277.0,0.010848]
[1768294873050,0.22819523,92290.0,92280.0,0.010848]
[1768294873854,0.0020393,92289.0,92276.0,0.010848]
[1768294874661,0.0020393,92289.0,92278.0,0.010848]
[1768294874968,0.0020393,92289.0,92280.0,0.010848]
[1768294875661,0.09768,92290.0,92280.0,0.010848]
[1768294875866,0.22819523,92290.0,92280.0,0.010848]
[1768294876061,0.13051523,92290.0,92280.0,0.010848]
[1768294876361,0.00194255,92287.0,92270.0,0.010849]
[1768294876570,0.13051523,92280.0,92265.0,0.09699352]
[1768294877265,0.13051523,92280.0,92270.0,0.010849]
[1768294878056,0.00194255,92285.0,92270.0,0.010849]
[1768294878258,0.13051523,92280.0,92270.0,0.010849]
[1768294879858,0.13051523,92280.0,92265.0,0.09284252]
[1768294880060,0.00194255,92285.0,92265.0,0.09284252]
[1768294880557,0.00194255,92285.0,92270.0,0.14136423]
[1768294881072,0.00194255,92285.0,92270.0,0.010849]
[1768294881971,0.13051523,92280.0,92270.0,0.010849]
[1768294884276,0.00194255,92285.0,92270.0,0.010849]
[1768294884463,0.13051523,92280.0,92270.0,0.010849]
[1768294884665,0.00194255,92285.0,92270.0,0.010849]
[1768294885672,0.00194255,92285.0,92270.0,0.14136423]
[1768294886782,0.00194255,92285.0,92270.0,0.010849]
[1768294886965,0.00194255,92285.0,92270.0,0.14136423]
[1768294887572,0.00194255,92285.0,92270.0,0.12236423]
[1768294888375,0.13051523,92290.0,92270.0,0.13321323]
[1768294888574,0.13051523,92290.0,92270.0,0.010849]
[1768294888776,0.13051523,92290.0,92270.0,0.14136423]
[1768294889271,0.0227732,92289.0,92270.0,0.14136423]
[1768294889463,0.13051523,92290.0,92270.0,0.14136423]
[1768294889775,0.02277427,92289.0,92270.0,0.14136423]
[1768294890076,0.13051523,92290.0,92270.0,0.14136423]
[1768294890266,0.02277427,92289.0,92270.0,0.14136423]
[1768294890468,0.13051523,92290.0,92270.0,0.14136423]
[1768294890669,0.02277529,92289.0,92270.0,0.13051523]
[1768294890977,0.13051523,92290.0,92270.0,0.13051523]
[1768294891178,0.02277528,92289.0,92270.0,0.13051523]
[1768294891374,0.13051523,92290.0,92273.0,0.010849]
[1768294891575,0.02278047,92289.0,92273.0,0.010849]
[1768294891774,0.13051523,92290.0,92273.0,0.010849]
[1768294891974,0.02278047,92289.0,92273.0,0.010849]
[1768294892268,0.13051523,92290.0,92273.0,0.010849]
[1768294892475,0.02278661,92289.0,92273.0,0.010849]
[1768294892676,0.02278661,92288.0,92273.0,0.010849]
[1768294892874,0.13051523,92290.0,92273.0,0.010849]
[1768294893079,0.02278661,92289.0,92273.0,0.010849]
[1768294893277,0.02278661,92288.0,92273.0,0.010849]
[1768294893473,0.02278661,92287.0,92276.0,0.010848]
[1768294893679,0.17822796,92292.0,92279.0,0.010848]
[1768294893871,0.13051523,92290.0,92279.0,0.010848]
[1768294894073,0.02279366,92289.0,92279.0,0.010848]
[1768294894381,0.02279366,92288.0,92279.0,0.010848]
[1768294894584,0.02279366,92287.0,92279.0,0.010848]
[1768294894881,0.13051523,92290.0,92279.0,0.010848]
[1768294895072,0.02280225,92289.0,92279.0,0.010848]
[1768294895268,0.02280225,92288.0,92273.0,0.09701313]
[1768294895474,0.02280225,92287.0,92273.0,0.09701313]
[1768294895676,0.13051523,92290.0,92273.0,0.09701313]
[1768294895877,0.02281172,92289.0,92273.0,0.09701313]
[1768294896078,0.02281172,92288.0,92273.0,0.09701313]
[1768294896278,0.02281172,92287.0,92278.0,0.13051523]
[1768294896473,0.02281172,92286.0,92278.0,0.09701313]
[1768294896674,0.13051523,92290.0,92279.0,0.010848]
[1768294896878,0.02282044,92289.0,92279.0,0.010848]
[1768294897081,0.02282044,92288.0,92279.0,0.010848]
[1768294897277,0.02282044,92287.0,92279.0,0.010848]
[1768294897477,0.02282044,92286.0,92279.0,0.010848]
[1768294897683,0.13051523,92290.0,92279.0,0.010848]
[1768294897986,0.02282461,92289.0,92279.0,0.010848]
[1768294898174,0.02282461,92288.0,92279.0,0.010848]
[1768294898376,0.02282461,92287.0,92279.0,0.010848]
[1768294898577,0.02282461,92286.0,92279.0,0.010848]
[1768294898780,0.02282461,92285.0,92279.0,0.010848]
[1768294899075,0.010846,92299.0,92279.0,0.010848]
[1768294899287,0.20633309,92300.0,92281.0,0.010848]
[1768294899288,0.12046627,92298.0,92281.0,0.010848]
[1768294899486,0.02282627,92297.0,92281.0,0.010848]
[1768294900889,0.13051523,92291.0,92281.0,0.010848]
[1768294901091,0.02282627,92290.0,92281.0,0.010848]
[1768294902277,0.02282627,92289.0,92281.0,0.010848]
[1768294902486,0.02282627,92288.0,92281.0,0.10786113]
[1768294902690,0.09764,92296.0,92288.0,0.010847]
[1768294902892,0.09764,92296.0,92275.0,0.19371431]
[1768294903186,0.09764,92296.0,92286.0,0.010847]
[1768294907996,0.13051523,92300.0,92281.0,0.09701313]
[1768294908197,0.09764,92299.0,92281.0,0.09701313]
[1768294908495,0.09764,92299.0,92286.0,0.010847]
[1768294909798,0.16912333,92299.0,92283.0,0.010848]
[1768294911699,0.09764,92299.0,92285.0,0.010847]
[1768294913397,0.13051523,92295.0,92282.0,0.010848]
[1768294913600,0.09764,92299.0,92270.0,0.13051523]
[1768294913601,0.13051523,92292.0,92279.0,0.010848]
[1768294913900,0.16814522,92299.0,92279.0,0.010848]
[1768294913901,0.13051523,92290.0,92279.0,0.010848]
[1768294914393,0.07050522,92298.0,92280.0,0.13051523]
[1768294914594,0.02249108,92297.0,92280.0,0.13051523]
[1768294914900,0.02249108,92296.0,92280.0,0.13051523]
[1768294915101,0.02249108,92295.0,92280.0,0.13051523]
[1768294915302,0.02249108,92294.0,92280.0,0.13051523]
[1768294915601,0.02249108,92293.0,92283.0,0.010848]
[1768294915790,0.02249108,92292.0,92276.0,0.09701313]
[1768294915990,0.07050522,92298.0,92276.0,0.09701313]
[1768294915991,0.02249108,92291.0,92280.0,0.13051523]
[1768294916192,0.02249108,92290.0,92276.0,0.09701313]
[1768294916391,0.13051523,92290.0,92276.0,0.09701313]
[1768294916804,0.13051523,92290.0,92282.0,0.010848]
[1768294917000,0.13051523,92292.0,92282.0,0.010848]
[1768294917203,0.02249035,92291.0,92282.0,0.010848]
[1768294917387,0.02249035,92290.0,92282.0,0.010848]
[1768294917592,0.13051523,92292.0,92282.0,0.010848]
[1768294917792,0.02249049,92291.0,92282.0,0.010848]
[1768294917993,0.02249049,92290.0,92284.0,0.010847]
[1768294918197,0.13051523,92294.0,92284.0,0.010847]
[1768294918397,0.02249049,92293.0,92284.0,0.010847]
[1768294918594,0.07050522,92298.0,92284.0,0.010847]
[1768294918595,4.9e-07,92292.0,92284.0,0.010847]
[1768294918803,0.09764,92299.0,92284.0,0.010847]
[1768294919702,0.09764,92299.0,92288.0,0.010847]
[1768294920704,0.010844,92318.0,92297.0,0.010846]
[1768294920910,0.00541568,92325.0,92298.0,0.010846]
[1768294920911,0.13051523,92310.0,92298.0,0.010846]
[1768294921203,0.13051523,92310.0,92302.0,0.010845]
[1768294921402,0.13051523,92312.0,92302.0,0.010845]
[1768294921800,0.13051523,92312.0,92299.0,0.010846]
[1768294922007,0.13051523,92310.0,92299.0,0.010846]
[1768294923106,0.13051523,92310.0,92301.0,0.010845]
[1768294923508,0.13051523,92311.0,92301.0,0.006845]
[1768294924098,0.13051523,92311.0,92298.0,0.010846]
[1768294924310,0.13051523,92311.0,92295.0,0.010846]
[1768294924803,0.01628389,92317.0,92303.0,0.010845]
[1768294925005,0.01628389,92312.0,92292.0,0.09038879]
[1768294925309,0.01628389,92312.0,92290.0,0.13051523]
[1768294925310,0.13051523,92310.0,92295.0,0.18678658]
[1768294925611,0.13051523,92310.0,92301.0,0.010845]
[1768294926510,0.01628389,92315.0,92303.0,0.010845]
[1768294927213,0.01628389,92315.0,92306.0,0.010845]
[1768294927420,0.09764,92314.0,92306.0,0.010845]
[1768294928106,0.09764,92314.0,92303.0,0.010845]
[1768294929226,0.00541568,92325.0,92308.0,0.18678658]
[1768294929512,8.2e-07,92328.0,92317.0,0.18678658]
[1768294929814,8.2e-07,92328.0,92325.0,0.010843]
[1768294930008,0.09176408,92342.0,92319.0,0.18678658]
[1768294930009,0.09764,92330.0,92327.0,0.010842]
[1768294930415,0.13051523,92340.0,92327.0,0.010842]
[1768294930605,0.09764,92339.0,92327.0,0.010842]
[1768294931001,0.13051523,92340.0,92327.0,0.010842]
[1768294931213,0.13051523,92340.0,92321.0,0.09639779]
[1768294931403,0.09764,92339.0,92328.0,0.010842]
[1768294932111,0.09764,92339.0,92324.0,0.010843]
[1768294932515,0.09994316,92339.0,92324.0,0.010843]
[1768294933514,0.09406724,92342.0,92327.0,0.010842]
[1768294933812,0.09764,92338.0,92323.0,0.010843]
[1768294934613,0.00230316,92340.0,92323.0,0.010843]
[1768294934816,0.09764,92337.0,92323.0,0.010843]
[1768294935716,0.09832715,92337.0,92323.0,0.010843]
[1768294936716,0.09832715,92337.0,92326.0,0.010843]
[1768294937214,0.94337451,92345.0,92308.0,0.108485]
[1768294937215,0.00541451,92345.0,92327.0,0.09231282]
[1768294937409,0.00541451,92345.0,92320.0,0.13038006]
[1768294937410,0.00541451,92345.0,92331.0,0.010842]
[1768294938218,0.00541451,92345.0,92328.0,0.19008488]
[1768294938219,0.00541451,92345.0,92334.0,0.010842]
[1768294938415,0.00541451,92345.0,92331.0,0.010842]
[1768294938621,0.09863603,92345.0,92325.0,0.010843]
[1768294940110,0.09863603,92345.0,92329.0,0.010842]
[1768294941413,0.02225972,92344.0,92329.0,0.010842]
[1768294941613,0.09863603,92345.0,92332.0,0.010842]
[1768294941815,0.02226138,92344.0,92332.0,0.010842]
[1768294942019,0.09863603,92345.0,92328.0,0.010842]
[1768294942214,0.00126654,92343.0,92328.0,0.010842]
[1768294943425,0.09863603,92345.0,92331.0,0.010842]
[1768294944027,0.09990257,92345.0,92331.0,0.010842]
[1768294945115,0.09990257,92345.0,92325.0,0.18692688]
[1768294945323,0.09990257,92345.0,92326.0,0.09777206]
[1768294945827,0.00032589,92344.0,92326.0,0.09777206]
[1768294946022,0.00032589,92343.0,92322.0,0.19008488]
[1768294946222,0.00297234,92340.0,92322.0,0.09231282]
[1768294946428,0.09322152,92341.0,92323.0,0.09777206]
[1768294946626,0.00297234,92344.0,92328.0,0.010842]
[1768294948429,0.00297234,92344.0,92323.0,0.19008488]
[1768294948929,0.00385511,92343.0,92324.0,0.010843]
[1768294949125,0.00541451,92345.0,92324.0,0.010843]
[1768294949126,0.00385511,92340.0,92324.0,0.010843]
[1768294949420,0.00385511,92340.0,92306.0,0.09777206]
[1768294949421,0.00385511,92329.0,92306.0,0.09777206]
[1768294949621,0.00385511,92329.0,92307.0,0.010845]
[1768294949622,0.00385511,92325.0,92307.0,0.010845]
[1768294950222,0.00385511,92325.0,92309.0,0.010845]
[1768294950613,0.00385511,92325.0,92311.0,0.010844]
[1768294950817,0.00385511,92325.0,92308.0,0.010845]
[1768294951622,0.00385511,92325.0,92306.0,0.28768488]
[1768294951930,0.00385511,92325.0,92310.0,0.010844]
[1768294952330,0.00385511,92325.0,92307.0,0.10861706]
[1768294952530,0.00385511,92325.0,92309.0,0.010844]
[1768294952926,0.00385511,92325.0,92305.0,0.00541685]
[1768294952927,0.00301672,92314.0,92305.0,0.00541685]
[1768294953126,0.09322152,92313.0,92292.0,0.0976]
[1768294953321,0.09322152,92311.0,92292.0,0.108447]
[1768294953522,0.09322152,92311.0,92289.0,0.09231282]
[1768294953721,0.09322152,92309.0,92288.0,0.010847]
[1768294953932,0.0976,92318.0,92291.0,0.010847]
[1768294953933,0.11568602,92308.0,92291.0,0.010847]
[1768294954228,0.02246961,92307.0,92291.0,0.010847]
[1768294954428,0.09322152,92308.0,92291.0,0.010847]
[1768294954733,0.02246639,92307.0,92291.0,0.10324327]
[1768294954930,0.09884813,92313.0,92294.0,0.010846]
[1768294955232,0.12006639,92312.0,92300.0,0.010846]
[1768294955431,0.02246639,92311.0,92300.0,0.010846]
[1768294955631,0.02246639,92310.0,92300.0,0.010846]
[1768294955831,0.02246639,92309.0,92300.0,0.010846]
[1768294956022,0.010843,92322.0,92300.0,0.010846]
[1768294956219,0.02246461,92321.0,92302.0,0.09239627]
[1768294956428,0.09884813,92326.0,92307.0,0.1884648]
[1768294956429,0.02246461,92320.0,92307.0,0.1884648]
[1768294956631,0.02246461,92320.0,92285.0,0.108447]
[1768294956632,0.02246461,92319.0,92304.0,0.010845]
[1768294956830,0.02246461,92318.0,92304.0,0.010845]
[1768294957031,0.02246461,92317.0,92304.0,0.010845]
[1768294957227,0.010843,92325.0,92304.0,0.010845]
[1768294957228,0.02246461,92316.0,92304.0,0.010845]
[1768294957428,0.02246461,92315.0,92304.0,0.010845]
[1768294957727,0.19644813,92326.0,92307.0,0.010845]
[1768294957928,0.02246589,92325.0,92307.0,0.010845]
[1768294958231,0.02246589,92324.0,92307.0,0.010845]
[1768294958432,0.02246589,92323.0,92307.0,0.010845]
[1768294958631,0.02246589,92322.0,92307.0,0.010845]
[1768294958831,0.02246589,92321.0,92307.0,0.010845]
[1768294959031,0.02246589,92320.0,92303.0,0.10324127]
[1768294959234,0.02246589,92319.0,92303.0,0.10324127]
[1768294959533,0.02246589,92318.0,92302.0,0.09606853]
[1768294959734,0.02246589,92317.0,92302.0,0.10691353]
[1768294959935,0.02246589,92316.0,92302.0,0.10691353]
[1768294960132,0.02246589,92315.0,92302.0,0.10691353]
[1768294960433,0.02246589,92314.0,92302.0,0.10691353]
[1768294960635,0.10969113,92323.0,92302.0,0.09606853]
[1768294960834,0.0224689,92322.0,92302.0,0.09606853]
[1768294961034,0.0224689,92321.0,92302.0,0.09606853]
[1768294961235,0.0224689,92320.0,92302.0,0.09606853]
[1768294961434,0.0224689,92319.0,92302.0,0.09606853]
[1768294961636,0.0224689,92318.0,92303.0,0.10324127]
[1768294961836,0.0224689,92317.0,92304.0,0.09239627]
[1768294962142,0.0224689,92316.0,92305.0,0.1993098]
[1768294962330,0.0976,92326.0,92305.0,0.1993098]
[1768294962738,0.19644813,92326.0,92305.0,0.1993098]